[Event "Early-Titled-Tuesday-Blitz-September-26-2023"]
[Site "Chess.com"]
[Date "2023.09.26"]
[Round "6"]
[White "ViktoriyaTarasova"]
[Black "Zarinur"]
[Result "0-1"]
[WhiteElo "2402"]
[BlackElo "2526"]
[TimeControl "180+1"]
[EndTime "9:09:41 PDT"]
[Termination "Zarinur won by checkmate"]

1. d4 {[%clk 0:03:00.9]} 1... Nf6 {[%clk 0:02:59.1]} 2. c4 {[%clk 0:03:00.8]}
2... e6 {[%clk 0:02:59.7]} 3. Nc3 {[%clk 0:03:00.5]} 3... Bb4 {[%clk 0:02:59.9]}
4. e3 {[%clk 0:03:00.6]} 4... O-O {[%clk 0:02:56.3]} 5. Bd3 {[%clk 0:03:00.4]}
5... d5 {[%clk 0:02:55.2]} 6. cxd5 {[%clk 0:02:59.2]} 6... Bxc3+ {[%clk
0:02:56.1]} 7. bxc3 {[%clk 0:02:59]} 7... exd5 {[%clk 0:02:57]} 8. Ne2 {[%clk
0:02:57.7]} 8... c6 {[%clk 0:02:50.9]} 9. O-O {[%clk 0:02:57.3]} 9... b5 {[%clk
0:02:50.8]} 10. Ng3 {[%clk 0:02:56.6]} 10... Nbd7 {[%clk 0:02:49.6]} 11. f3
{[%clk 0:02:55]} 11... Nb6 {[%clk 0:02:49.8]} 12. Re1 {[%clk 0:02:55.3]} 12...
Nc4 {[%clk 0:02:25.4]} 13. Qc2 {[%clk 0:02:48.5]} 13... h6 {[%clk 0:02:09.2]}
14. e4 {[%clk 0:02:31]} 14... Be6 {[%clk 0:01:48]} 15. e5 {[%clk 0:02:25]} 15...
Ne8 {[%clk 0:01:47.4]} 16. f4 {[%clk 0:02:25]} 16... Bc8 {[%clk 0:01:18]} 17. f5
{[%clk 0:02:22.8]} 17... f6 {[%clk 0:01:11.8]} 18. a4 {[%clk 0:02:07]} 18...
fxe5 {[%clk 0:01:06.7]} 19. dxe5 {[%clk 0:02:06.5]} 19... Qc7 {[%clk 0:00:55.9]}
20. Qe2 {[%clk 0:01:46.7]} 20... a5 {[%clk 0:00:36.8]} 21. Kh1 {[%clk
0:01:08.4]} 21... Ba6 {[%clk 0:00:30.6]} 22. Bf4 {[%clk 0:00:58.1]} 22... bxa4
{[%clk 0:00:20.4]} 23. Rxa4 {[%clk 0:00:48.6]} 23... Nb6 {[%clk 0:00:20.6]} 24.
Raa1 {[%clk 0:00:38.4]} 24... Bxd3 {[%clk 0:00:19.9]} 25. Qxd3 {[%clk
0:00:39.1]} 25... Nc4 {[%clk 0:00:20.5]} 26. Qd4 {[%clk 0:00:33.4]} 26... Qb6
{[%clk 0:00:19.6]} 27. Qxb6 {[%clk 0:00:25.4]} 27... Nxb6 {[%clk 0:00:20.5]} 28.
e6 {[%clk 0:00:26.1]} 28... Nf6 {[%clk 0:00:17]} 29. Bc7 {[%clk 0:00:22.7]}
29... Nc4 {[%clk 0:00:14.2]} 30. e7 {[%clk 0:00:20.5]} 30... Rfe8 {[%clk
0:00:14.2]} 31. Bd8 {[%clk 0:00:19.5]} 31... a4 {[%clk 0:00:09.5]} 32. Ne2
{[%clk 0:00:19.5]} 32... a3 {[%clk 0:00:06.4]} 33. Nd4 {[%clk 0:00:19.5]} 33...
Kf7 {[%clk 0:00:02]} 34. Nxc6 {[%clk 0:00:18.5]} 34... Ne4 {[%clk 0:00:02.7]}
35. Rec1 {[%clk 0:00:12.5]} 35... Nf2+ {[%clk 0:00:02.2]} 36. Kg1 {[%clk
0:00:12.4]} 36... Nd3 {[%clk 0:00:02.8]} 37. Re1 {[%clk 0:00:09.5]} 37... Nxe1
{[%clk 0:00:02.5]} 38. Rxe1 {[%clk 0:00:08.6]} 38... a2 {[%clk 0:00:03.4]} 39.
Ra1 {[%clk 0:00:09.1]} 39... Ne3 {[%clk 0:00:02.3]} 40. Kf2 {[%clk 0:00:09.1]}
40... Nc2 {[%clk 0:00:02.6]} 41. Ne5+ {[%clk 0:00:07.5]} 41... Kf6 {[%clk
0:00:01.9]} 42. Nd7+ {[%clk 0:00:07.6]} 42... Kxf5 {[%clk 0:00:02.5]} 43. g4+
{[%clk 0:00:06.7]} 43... Kxg4 {[%clk 0:00:02.2]} 44. Rg1+ {[%clk 0:00:06.4]}
44... Kf5 {[%clk 0:00:03.1]} 45. Rxg7 {[%clk 0:00:06.1]} 45... a1=N {[%clk
0:00:03.7]} 46. Rf7+ {[%clk 0:00:06.4]} 46... Ke6 {[%clk 0:00:03.8]} 47. Rh7
{[%clk 0:00:04.9]} 47... Kxd7 {[%clk 0:00:04.1]} 48. Rxh6 {[%clk 0:00:05.7]}
48... Raxd8 {[%clk 0:00:03.9]} 49. exd8=Q+ {[%clk 0:00:05.4]} 49... Rxd8 {[%clk
0:00:04.8]} 50. h4 {[%clk 0:00:05.4]} 50... Rc8 {[%clk 0:00:04.4]} 51. h5 {[%clk
0:00:05.8]} 51... Rxc3 {[%clk 0:00:03.9]} 52. Rh7+ {[%clk 0:00:06.5]} 52... Kd6
{[%clk 0:00:04.1]} 53. h6 {[%clk 0:00:06.6]} 53... Rh3 {[%clk 0:00:04.7]} 54.
Rh8 {[%clk 0:00:07.1]} 54... Kc5 {[%clk 0:00:04.7]} 55. Rc8+ {[%clk 0:00:06.2]}
55... Kd4 {[%clk 0:00:05.2]} 56. Rc6 {[%clk 0:00:04.1]} 56... Ne3 {[%clk
0:00:04]} 57. Ke2 {[%clk 0:00:03.9]} 57... Nf5 {[%clk 0:00:03.8]} 58. h7 {[%clk
0:00:03.3]} 58... Rxh7 {[%clk 0:00:03.4]} 59. Rc1 {[%clk 0:00:03.1]} 59... Nb3
{[%clk 0:00:03.5]} 60. Rd1+ {[%clk 0:00:03.8]} 60... Ke4 {[%clk 0:00:04]} 61.
Rb1 {[%clk 0:00:03.9]} 61... Nbd4+ {[%clk 0:00:04.5]} 62. Kf2 {[%clk 0:00:04.1]}
62... Rh2+ {[%clk 0:00:04.9]} 63. Kg1 {[%clk 0:00:04.3]} 63... Nf3+ {[%clk
0:00:05.6]} 64. Kf1 {[%clk 0:00:04.8]} 64... Ng3# {[%clk 0:00:06.3]} 0-1

[Event "Early-Titled-Tuesday-Blitz-September-26-2023"]
[Site "Chess.com"]
[Date "2023.09.26"]
[Round "6"]
[White "FlemingA"]
[Black "sergeikim"]
[Result "0-1"]
[WhiteElo "2437"]
[BlackElo "2606"]
[TimeControl "180+1"]
[EndTime "9:09:43 PDT"]
[Termination "sergeikim won by resignation"]

1. g3 {[%clk 0:03:00.9]} 1... Nf6 {[%clk 0:02:59.7]} 2. Bg2 {[%clk 0:03:01.8]}
2... g6 {[%clk 0:02:59.8]} 3. Nf3 {[%clk 0:03:01.6]} 3... Bg7 {[%clk 0:03:00.1]}
4. O-O {[%clk 0:03:02.1]} 4... O-O {[%clk 0:03:00.6]} 5. d3 {[%clk 0:03:01.2]}
5... d6 {[%clk 0:03:00.8]} 6. e4 {[%clk 0:03:00.9]} 6... e5 {[%clk 0:03:00.8]}
7. h3 {[%clk 0:02:59.2]} 7... c6 {[%clk 0:03:01]} 8. a4 {[%clk 0:02:58.5]} 8...
a5 {[%clk 0:03:00.1]} 9. c3 {[%clk 0:02:57.8]} 9... Re8 {[%clk 0:03:00.3]} 10.
Re1 {[%clk 0:02:57.4]} 10... Na6 {[%clk 0:02:59.4]} 11. Nbd2 {[%clk 0:02:57.6]}
11... h6 {[%clk 0:02:57.2]} 12. Nc4 {[%clk 0:02:57]} 12... Be6 {[%clk 0:02:55]}
13. Be3 {[%clk 0:02:52.3]} 13... c5 {[%clk 0:02:49.9]} 14. b3 {[%clk 0:02:42.4]}
14... Qc7 {[%clk 0:02:38.3]} 15. Qd2 {[%clk 0:02:38.7]} 15... Kh7 {[%clk
0:02:38.5]} 16. Rab1 {[%clk 0:02:34.6]} 16... Rad8 {[%clk 0:02:37.7]} 17. Na3
{[%clk 0:02:34.7]} 17... d5 {[%clk 0:02:36.3]} 18. Nb5 {[%clk 0:02:34.4]} 18...
Qb8 {[%clk 0:02:34.9]} 19. Qc2 {[%clk 0:02:20.9]} 19... d4 {[%clk 0:02:30.3]}
20. Bd2 {[%clk 0:02:20.7]} 20... Rc8 {[%clk 0:02:21.4]} 21. c4 {[%clk
0:02:16.6]} 21... b6 {[%clk 0:02:17.5]} 22. Nh2 {[%clk 0:02:00.3]} 22... Rcd8
{[%clk 0:02:16.6]} 23. Rf1 {[%clk 0:01:57.9]} 23... Qc8 {[%clk 0:02:14]} 24. g4
{[%clk 0:01:46.3]} 24... Nc7 {[%clk 0:02:11.5]} 25. Nxc7 {[%clk 0:01:38.2]}
25... Qxc7 {[%clk 0:02:11.3]} 26. f4 {[%clk 0:01:39.1]} 26... exf4 {[%clk
0:02:10]} 27. Bxf4 {[%clk 0:01:40]} 27... Qc8 {[%clk 0:02:08]} 28. Qf2 {[%clk
0:01:16.9]} 28... Nd7 {[%clk 0:02:06.2]} 29. Qg3 {[%clk 0:01:10.3]} 29... Rg8
{[%clk 0:01:54.9]} 30. Nf3 {[%clk 0:01:06.2]} 30... Rdf8 {[%clk 0:01:49.8]} 31.
Qh4 {[%clk 0:00:59.5]} 31... f6 {[%clk 0:01:45.7]} 32. e5 {[%clk 0:00:40.3]}
32... Nxe5 {[%clk 0:01:19.6]} 33. Nxe5 {[%clk 0:00:19.8]} 33... fxe5 {[%clk
0:01:19.7]} 34. Bxh6 {[%clk 0:00:20.7]} 34... Rh8 {[%clk 0:01:10.5]} 35. Bxg7+
{[%clk 0:00:14.5]} 35... Kxg7 {[%clk 0:01:10.5]} 36. Qe7+ {[%clk 0:00:15.2]}
36... Rf7 {[%clk 0:01:08.3]} 37. Rxf7+ {[%clk 0:00:14.4]} 37... Bxf7 {[%clk
0:01:08.8]} 38. Qxe5+ {[%clk 0:00:12.1]} 38... Kg8 {[%clk 0:01:04]} 39. Rf1
{[%clk 0:00:12.3]} 39... Qe6 {[%clk 0:01:01.9]} 40. Qb8+ {[%clk 0:00:09.5]}
40... Kg7 {[%clk 0:01:01.3]} 41. Qf4 {[%clk 0:00:08]} 41... Qe7 {[%clk
0:00:52.5]} 42. Kh2 {[%clk 0:00:04.7]} 42... Re8 {[%clk 0:00:49.1]} 43. Be4
{[%clk 0:00:03.1]} 43... Bg8 {[%clk 0:00:42.5]} 44. Kg3 {[%clk 0:00:03.6]} 44...
g5 {[%clk 0:00:38.7]} 45. Qf5 {[%clk 0:00:02.8]} 45... Qe5+ {[%clk 0:00:37.2]}
46. Qxe5+ {[%clk 0:00:02.8]} 46... Rxe5 {[%clk 0:00:38.1]} 47. h4 {[%clk
0:00:02.6]} 47... gxh4+ {[%clk 0:00:37.6]} 48. Kxh4 {[%clk 0:00:03.5]} 48... Be6
{[%clk 0:00:36.4]} 49. Kg3 {[%clk 0:00:03.3]} 49... Rg5 {[%clk 0:00:35]} 50. Bf5
{[%clk 0:00:03.6]} 50... Bxf5 {[%clk 0:00:33.7]} 51. Rxf5 {[%clk 0:00:04.5]}
51... Rg6 {[%clk 0:00:34]} 52. Rd5 {[%clk 0:00:03.4]} 52... Re6 {[%clk
0:00:33.3]} 53. Rd7+ {[%clk 0:00:03.4]} 53... Kf6 {[%clk 0:00:32.1]} 54. Rb7
{[%clk 0:00:04.1]} 54... Ke5 {[%clk 0:00:31.5]} 55. Kh4 {[%clk 0:00:03.3]} 55...
Kf4 {[%clk 0:00:31.2]} 56. g5 {[%clk 0:00:02.6]} 56... Ke3 {[%clk 0:00:29]} 57.
Kh5 {[%clk 0:00:02.3]} 57... Kxd3 {[%clk 0:00:28.7]} 58. g6 {[%clk 0:00:03.1]}
58... Kc3 {[%clk 0:00:27.6]} 59. g7 {[%clk 0:00:03.7]} 59... Re8 {[%clk
0:00:27.7]} 60. Rxb6 {[%clk 0:00:03.8]} 60... d3 {[%clk 0:00:28]} 61. Kh6 {[%clk
0:00:03.9]} 61... d2 {[%clk 0:00:26.1]} 62. Rd6 {[%clk 0:00:04.6]} 62... Kc2
{[%clk 0:00:21.1]} 63. Kh7 {[%clk 0:00:03.3]} 63... d1=Q {[%clk 0:00:21.2]} 64.
Rxd1 {[%clk 0:00:04]} 64... Kxd1 {[%clk 0:00:22.1]} 65. g8=Q {[%clk 0:00:04.9]}
65... Rxg8 {[%clk 0:00:21.9]} 66. Kxg8 {[%clk 0:00:05.8]} 66... Kc2 {[%clk
0:00:22.3]} 67. Kf7 {[%clk 0:00:06.7]} 67... Kxb3 {[%clk 0:00:22.6]} 68. Ke6
{[%clk 0:00:07.5]} 68... Kxc4 {[%clk 0:00:22.9]} 69. Kd6 {[%clk 0:00:08.2]}
69... Kb4 {[%clk 0:00:22]} 70. Kd5 {[%clk 0:00:08.3]} 70... c4 {[%clk
0:00:22.3]} 71. Kd4 {[%clk 0:00:08.8]} 71... Kb3 {[%clk 0:00:22.3]} 72. Ke3
{[%clk 0:00:09]} 72... c3 {[%clk 0:00:22.3]} 73. Kd3 {[%clk 0:00:09.5]} 73...
Kb2 {[%clk 0:00:22.3]} 0-1

[Event "Early-Titled-Tuesday-Blitz-September-26-2023"]
[Site "Chess.com"]
[Date "2023.09.26"]
[Round "6"]
[White "Agibileg"]
[Black "Igrok3069"]
[Result "0-1"]
[WhiteElo "2667"]
[BlackElo "2888"]
[TimeControl "180+1"]
[EndTime "9:09:45 PDT"]
[Termination "Igrok3069 won on time"]

1. d4 {[%clk 0:03:00.3]} 1... d5 {[%clk 0:02:43.5]} 2. c4 {[%clk 0:03:00.4]}
2... c6 {[%clk 0:02:43.1]} 3. Nf3 {[%clk 0:03:00.2]} 3... Nf6 {[%clk 0:02:43.7]}
4. Nc3 {[%clk 0:03:00.5]} 4... e6 {[%clk 0:02:44]} 5. g3 {[%clk 0:02:58.9]} 5...
dxc4 {[%clk 0:02:42.4]} 6. Bg2 {[%clk 0:02:59]} 6... Nbd7 {[%clk 0:02:42.4]} 7.
O-O {[%clk 0:02:58.9]} 7... Bb4 {[%clk 0:02:43]} 8. e4 {[%clk 0:02:47.3]} 8...
O-O {[%clk 0:02:40.3]} 9. Qe2 {[%clk 0:02:46.9]} 9... b5 {[%clk 0:02:35.7]} 10.
Rd1 {[%clk 0:02:34]} 10... Bb7 {[%clk 0:02:34.7]} 11. Bg5 {[%clk 0:02:16.2]}
11... h6 {[%clk 0:02:34.5]} 12. Bf4 {[%clk 0:02:16.2]} 12... Re8 {[%clk
0:02:30.5]} 13. h3 {[%clk 0:02:16.2]} 13... a6 {[%clk 0:02:29.3]} 14. g4 {[%clk
0:02:15.8]} 14... Be7 {[%clk 0:02:15.4]} 15. b3 {[%clk 0:02:10]} 15... Qa5
{[%clk 0:02:05.8]} 16. Rdc1 {[%clk 0:01:42.5]} 16... b4 {[%clk 0:01:51.6]} 17.
e5 {[%clk 0:01:41.8]} 17... bxc3 {[%clk 0:01:39]} 18. exf6 {[%clk 0:01:41.2]}
18... Bxf6 {[%clk 0:01:37.9]} 19. Qxc4 {[%clk 0:01:12.4]} 19... c5 {[%clk
0:01:37.1]} 20. Ne5 {[%clk 0:01:02.6]} 20... Bd5 {[%clk 0:00:15.4]} 21. Bxd5
{[%clk 0:00:25.9]} 21... Nb6 {[%clk 0:00:15.5]} 22. Qxc3 {[%clk 0:00:24]} 22...
Qxc3 {[%clk 0:00:14]} 23. Rxc3 {[%clk 0:00:24.9]} 23... Nxd5 {[%clk 0:00:14.7]}
24. Rf3 {[%clk 0:00:24.8]} 24... cxd4 {[%clk 0:00:12.6]} 25. Nd7 {[%clk
0:00:20.5]} 25... Rad8 {[%clk 0:00:06.1]} 26. Nxf6+ {[%clk 0:00:20.3]} 26...
Nxf6 {[%clk 0:00:06.6]} 27. Be5 {[%clk 0:00:20.6]} 27... Ne4 {[%clk 0:00:05.6]}
28. Rd3 {[%clk 0:00:17.7]} 28... f6 {[%clk 0:00:05.1]} 29. Rxd4 {[%clk
0:00:09.3]} 29... Ng5 {[%clk 0:00:05.4]} 30. Rxd8 {[%clk 0:00:09.1]} 30... Rxd8
{[%clk 0:00:06.3]} 31. Bc7 {[%clk 0:00:08.2]} 31... Rd7 {[%clk 0:00:06.4]} 32.
Rc1 {[%clk 0:00:08.5]} 32... Nxh3+ {[%clk 0:00:07]} 33. Kg2 {[%clk 0:00:09]}
33... Ng5 {[%clk 0:00:07.9]} 34. Rc6 {[%clk 0:00:09.1]} 34... e5 {[%clk
0:00:07.3]} 35. Ba5 {[%clk 0:00:06.1]} 35... Ra7 {[%clk 0:00:06.9]} 36. a4
{[%clk 0:00:04.7]} 36... Kf7 {[%clk 0:00:07.2]} 37. b4 {[%clk 0:00:04.8]} 37...
Ne6 {[%clk 0:00:07.4]} 38. Bb6 {[%clk 0:00:04.6]} 38... Rb7 {[%clk 0:00:06.7]}
39. Ba5 {[%clk 0:00:03.4]} 39... Ra7 {[%clk 0:00:06.2]} 40. Bb6 {[%clk
0:00:03.7]} 40... Rd7 {[%clk 0:00:06]} 41. Be3 {[%clk 0:00:03.3]} 41... Rb7
{[%clk 0:00:06.3]} 42. Rxa6 {[%clk 0:00:02.7]} 42... Rxb4 {[%clk 0:00:06.2]} 43.
Kf3 {[%clk 0:00:02.9]} 43... Rb3 {[%clk 0:00:04.8]} 44. Ra7+ {[%clk 0:00:02.8]}
44... Kg6 {[%clk 0:00:04.6]} 45. a5 {[%clk 0:00:03.3]} 45... Ra3 {[%clk
0:00:04.2]} 46. Ra8 {[%clk 0:00:02.6]} 46... Ng5+ {[%clk 0:00:04.2]} 47. Ke2
{[%clk 0:00:01.9]} 47... Ne4 {[%clk 0:00:05.1]} 48. a6 {[%clk 0:00:02.2]} 48...
Nc3+ {[%clk 0:00:05.2]} 49. Kf1 {[%clk 0:00:01.9]} 49... Nd5 {[%clk 0:00:05.2]}
50. Bc5 {[%clk 0:00:02.2]} 50... Ra5 {[%clk 0:00:04.8]} 51. a7 {[%clk
0:00:01.9]} 51... Nf4 {[%clk 0:00:02.7]} 52. Be3 {[%clk 0:00:01.7]} 52... Ra1+
{[%clk 0:00:02.4]} 0-1

[Event "Early-Titled-Tuesday-Blitz-September-26-2023"]
[Site "Chess.com"]
[Date "2023.09.26"]
[Round "6"]
[White "LeoLV10"]
[Black "amylazy"]
[Result "1/2-1/2"]
[WhiteElo "2634"]
[BlackElo "2454"]
[TimeControl "180+1"]
[EndTime "9:09:46 PDT"]
[Termination "Game drawn by repetition"]

1. e4 {[%clk 0:03:00.9]} 1... c5 {[%clk 0:02:56.9]} 2. Nf3 {[%clk 0:03:01]} 2...
e6 {[%clk 0:02:57.2]} 3. d4 {[%clk 0:03:01.4]} 3... cxd4 {[%clk 0:02:58.1]} 4.
Nxd4 {[%clk 0:03:01.9]} 4... a6 {[%clk 0:02:48.4]} 5. Bd3 {[%clk 0:03:01.7]}
5... Bc5 {[%clk 0:02:47.4]} 6. Nb3 {[%clk 0:03:01.7]} 6... Be7 {[%clk
0:02:48.1]} 7. O-O {[%clk 0:02:59.6]} 7... Nf6 {[%clk 0:02:48.4]} 8. Qe2 {[%clk
0:02:59.7]} 8... d6 {[%clk 0:02:48.3]} 9. c4 {[%clk 0:02:59.6]} 9... Nbd7 {[%clk
0:02:48.7]} 10. Nc3 {[%clk 0:03:00]} 10... Qc7 {[%clk 0:02:47.9]} 11. f4 {[%clk
0:02:55.7]} 11... b6 {[%clk 0:02:47.4]} 12. Kh1 {[%clk 0:02:55.2]} 12... Bb7
{[%clk 0:02:47.7]} 13. Be3 {[%clk 0:02:51.9]} 13... O-O {[%clk 0:02:46.8]} 14.
Rae1 {[%clk 0:02:48.6]} 14... Nc5 {[%clk 0:02:44.1]} 15. Nxc5 {[%clk 0:02:48.2]}
15... bxc5 {[%clk 0:02:45]} 16. b3 {[%clk 0:02:45]} 16... Qa5 {[%clk 0:02:43.8]}
17. Bd2 {[%clk 0:02:44.5]} 17... Qc7 {[%clk 0:02:43.2]} 18. Bc1 {[%clk
0:02:43.6]} 18... Rfe8 {[%clk 0:02:40.3]} 19. Bb2 {[%clk 0:02:43.3]} 19... Bf8
{[%clk 0:02:39.3]} 20. e5 {[%clk 0:02:43.3]} 20... Nd7 {[%clk 0:02:35.4]} 21.
exd6 {[%clk 0:02:42.2]} 21... Qxd6 {[%clk 0:02:35]} 22. Ne4 {[%clk 0:02:40.2]}
22... Qc7 {[%clk 0:02:27.2]} 23. Rd1 {[%clk 0:02:35.5]} 23... Rad8 {[%clk
0:02:22.6]} 24. Qh5 {[%clk 0:02:25]} 24... g6 {[%clk 0:02:21.5]} 25. Qh4 {[%clk
0:02:22.7]} 25... Bxe4 {[%clk 0:02:19.6]} 26. Bxe4 {[%clk 0:02:22.5]} 26... Bg7
{[%clk 0:02:18.5]} 27. Bxg7 {[%clk 0:01:34.7]} 27... Kxg7 {[%clk 0:02:18.4]} 28.
Bb1 {[%clk 0:01:34.2]} 28... Nf6 {[%clk 0:02:18.3]} 29. Rde1 {[%clk 0:01:34]}
29... Rd4 {[%clk 0:02:17.3]} 30. Qf2 {[%clk 0:01:28.1]} 30... Red8 {[%clk
0:02:06.2]} 31. h3 {[%clk 0:01:27.7]} 31... Nh5 {[%clk 0:01:58.6]} 32. g3 {[%clk
0:01:02.4]} 32... Qc6+ {[%clk 0:01:22.5]} 33. Kg1 {[%clk 0:01:00.9]} 33... Rd2
{[%clk 0:01:22.1]} 34. Qf3 {[%clk 0:00:59.7]} 34... Qd6 {[%clk 0:01:19.4]} 35.
g4 {[%clk 0:00:50.2]} 35... Qd4+ {[%clk 0:01:18.5]} 36. Qe3 {[%clk 0:00:46.1]}
36... Qb2 {[%clk 0:00:51.2]} 37. Qe5+ {[%clk 0:00:36.8]} 37... Qxe5 {[%clk
0:00:50.8]} 38. Rxe5 {[%clk 0:00:34.9]} 38... Nxf4 {[%clk 0:00:30.2]} 39. Rxf4
{[%clk 0:00:31.3]} 39... Rb2 {[%clk 0:00:30.1]} 40. Re1 {[%clk 0:00:24.7]} 40...
Rdd2 {[%clk 0:00:29.9]} 41. Be4 {[%clk 0:00:22]} 41... Rxa2 {[%clk 0:00:29.8]}
42. Bh1 {[%clk 0:00:20.6]} 42... Rab2 {[%clk 0:00:27.9]} 43. Ref1 {[%clk
0:00:18.7]} 43... f5 {[%clk 0:00:26.8]} 44. gxf5 {[%clk 0:00:18.7]} 44... exf5
{[%clk 0:00:21.7]} 45. Re1 {[%clk 0:00:18.9]} 45... Rxb3 {[%clk 0:00:20]} 46.
Rf3 {[%clk 0:00:18.2]} 46... Rb4 {[%clk 0:00:18.4]} 47. Rc3 {[%clk 0:00:13.7]}
47... Rd4 {[%clk 0:00:17.2]} 48. Bd5 {[%clk 0:00:13.7]} 48... Rb2 {[%clk
0:00:14.9]} 49. Ra3 {[%clk 0:00:13.7]} 49... Rb6 {[%clk 0:00:13.4]} 50. Rea1
{[%clk 0:00:12.7]} 50... Rd2 {[%clk 0:00:12.3]} 51. Rxa6 {[%clk 0:00:11.9]}
51... Rb3 {[%clk 0:00:12.5]} 52. Ra7+ {[%clk 0:00:12.1]} 52... Kh6 {[%clk
0:00:12.2]} 53. Re7 {[%clk 0:00:10.6]} 53... Rxh3 {[%clk 0:00:10.5]} 54. Raa7
{[%clk 0:00:09.7]} 54... Rg3+ {[%clk 0:00:10.6]} 55. Kf1 {[%clk 0:00:10]} 55...
Rb3 {[%clk 0:00:09.8]} 56. Rxh7+ {[%clk 0:00:09.5]} 56... Kg5 {[%clk 0:00:10.4]}
57. Rhe7 {[%clk 0:00:09.3]} 57... Rbb2 {[%clk 0:00:07.8]} 58. Re1 {[%clk
0:00:06.2]} 58... Rf2+ {[%clk 0:00:07.1]} 59. Kg1 {[%clk 0:00:06.5]} 59... Rf4
{[%clk 0:00:08]} 60. Rea1 {[%clk 0:00:02.8]} 60... Rg4+ {[%clk 0:00:08]} 61. Kf1
{[%clk 0:00:03.3]} 61... Rf4+ {[%clk 0:00:08.2]} 62. Ke1 {[%clk 0:00:03.3]}
62... Rg4 {[%clk 0:00:07.8]} 63. Kf1 {[%clk 0:00:03.3]} 63... Rf4+ {[%clk
0:00:05.3]} 64. Kg1 {[%clk 0:00:02.8]} 64... Rg4+ {[%clk 0:00:05.3]} 65. Kf1
{[%clk 0:00:03.3]} 1/2-1/2

[Event "Early-Titled-Tuesday-Blitz-September-26-2023"]
[Site "Chess.com"]
[Date "2023.09.26"]
[Round "6"]
[White "azikom"]
[Black "Barmen_EV"]
[Result "1-0"]
[WhiteElo "2635"]
[BlackElo "2442"]
[TimeControl "180+1"]
[EndTime "9:09:47 PDT"]
[Termination "azikom won by checkmate"]

1. d4 {[%clk 0:03:00.9]} 1... Nf6 {[%clk 0:02:58.9]} 2. Bg5 {[%clk 0:02:59.7]}
2... g6 {[%clk 0:02:56.8]} 3. Bxf6 {[%clk 0:02:58]} 3... exf6 {[%clk 0:02:57.7]}
4. e3 {[%clk 0:02:58.5]} 4... f5 {[%clk 0:02:57.4]} 5. g3 {[%clk 0:02:57.2]}
5... Bg7 {[%clk 0:02:56.5]} 6. Bg2 {[%clk 0:02:57.5]} 6... O-O {[%clk
0:02:57.1]} 7. Ne2 {[%clk 0:02:57.9]} 7... d5 {[%clk 0:02:56]} 8. Nd2 {[%clk
0:02:57.8]} 8... c6 {[%clk 0:02:56.6]} 9. c4 {[%clk 0:02:57.4]} 9... dxc4 {[%clk
0:02:55.5]} 10. Nxc4 {[%clk 0:02:56.9]} 10... Be6 {[%clk 0:02:55.5]} 11. Nd2
{[%clk 0:02:52.8]} 11... Bd5 {[%clk 0:02:51.7]} 12. Nf3 {[%clk 0:02:51.4]} 12...
c5 {[%clk 0:02:48.5]} 13. O-O {[%clk 0:02:50.6]} 13... Nc6 {[%clk 0:02:47.4]}
14. dxc5 {[%clk 0:02:48.6]} 14... Bxb2 {[%clk 0:02:21.4]} 15. Rb1 {[%clk
0:02:47.9]} 15... Bg7 {[%clk 0:02:11.7]} 16. Rxb7 {[%clk 0:02:33.9]} 16... Bxa2
{[%clk 0:01:25.3]} 17. Qa4 {[%clk 0:02:23.6]} 17... Bd5 {[%clk 0:00:59.9]} 18.
Nf4 {[%clk 0:02:08.1]} 18... Be4 {[%clk 0:00:47.2]} 19. Rd1 {[%clk 0:01:54.9]}
19... Qc8 {[%clk 0:00:46.3]} 20. Rdd7 {[%clk 0:01:51.9]} 20... Nb8 {[%clk
0:00:24.7]} 21. Rdc7 {[%clk 0:01:13.5]} 21... Qxb7 {[%clk 0:00:23]} 22. Rxb7
{[%clk 0:01:13.1]} 22... Bxb7 {[%clk 0:00:23.9]} 23. Nd4 {[%clk 0:01:10.5]}
23... Bxg2 {[%clk 0:00:22.2]} 24. Kxg2 {[%clk 0:01:11.3]} 24... a5 {[%clk
0:00:16.7]} 25. Nd5 {[%clk 0:01:10]} 25... Rd8 {[%clk 0:00:11.5]} 26. Nc7 {[%clk
0:01:03.2]} 26... Ra7 {[%clk 0:00:08.4]} 27. Ncb5 {[%clk 0:01:03.4]} 27... Re7
{[%clk 0:00:03.6]} 28. Nd6 {[%clk 0:00:58.6]} 28... Nd7 {[%clk 0:00:02.7]} 29.
Nc6 {[%clk 0:00:50]} 29... Nxc5 {[%clk 0:00:02.4]} 30. Nxe7+ {[%clk 0:00:49.5]}
30... Kf8 {[%clk 0:00:03.1]} 31. Qxa5 {[%clk 0:00:49.7]} 31... Kxe7 {[%clk
0:00:03.7]} 32. Nxf7 {[%clk 0:00:33.3]} 32... Kxf7 {[%clk 0:00:03.5]} 33. Qxd8
{[%clk 0:00:31.4]} 33... Ne6 {[%clk 0:00:04.1]} 34. Qd7+ {[%clk 0:00:31.1]}
34... Kf6 {[%clk 0:00:03.9]} 35. Qa7 {[%clk 0:00:30.4]} 35... h5 {[%clk
0:00:03.1]} 36. h3 {[%clk 0:00:29]} 36... g5 {[%clk 0:00:03.2]} 37. Qa8 {[%clk
0:00:27.9]} 37... g4 {[%clk 0:00:03.1]} 38. h4 {[%clk 0:00:28]} 38... Kf7 {[%clk
0:00:03.2]} 39. Qb7+ {[%clk 0:00:27.6]} 39... Kg6 {[%clk 0:00:03.4]} 40. Qc8
{[%clk 0:00:27.6]} 40... Kf7 {[%clk 0:00:02.1]} 41. Qd7+ {[%clk 0:00:27.4]}
41... Kf6 {[%clk 0:00:02.9]} 42. Qe8 {[%clk 0:00:27.5]} 42... Bf8 {[%clk
0:00:02.4]} 43. Qxh5 {[%clk 0:00:25.9]} 43... Be7 {[%clk 0:00:02.9]} 44. Qh8+
{[%clk 0:00:24.4]} 44... Ng7 {[%clk 0:00:03.2]} 45. Qa8 {[%clk 0:00:25]} 45...
Kf7 {[%clk 0:00:03.3]} 46. Qa6 {[%clk 0:00:24.4]} 46... Ne6 {[%clk 0:00:03.7]}
47. Qb5 {[%clk 0:00:24.1]} 47... Ng7 {[%clk 0:00:03.7]} 48. Qd5+ {[%clk
0:00:23.7]} 48... Kf6 {[%clk 0:00:04.1]} 49. e4 {[%clk 0:00:23.6]} 49... fxe4
{[%clk 0:00:04.2]} 50. Qxe4 {[%clk 0:00:24.5]} 50... Kf7 {[%clk 0:00:04.3]} 51.
Qxg4 {[%clk 0:00:23.8]} 51... Bf6 {[%clk 0:00:05.2]} 52. Qe4 {[%clk 0:00:23.8]}
52... Ne6 {[%clk 0:00:05.5]} 53. f4 {[%clk 0:00:23.2]} 53... Ng7 {[%clk
0:00:02.8]} 54. Qd5+ {[%clk 0:00:22.9]} 54... Kf8 {[%clk 0:00:03.1]} 55. Kh3
{[%clk 0:00:23.7]} 55... Ne8 {[%clk 0:00:04]} 56. Qf5 {[%clk 0:00:22.1]} 56...
Kg7 {[%clk 0:00:03.9]} 57. h5 {[%clk 0:00:16]} 57... Bd8 {[%clk 0:00:02.2]} 58.
Qg6+ {[%clk 0:00:15.1]} 58... Kf8 {[%clk 0:00:02.4]} 59. h6 {[%clk 0:00:15.6]}
59... Nf6 {[%clk 0:00:03]} 60. g4 {[%clk 0:00:15.4]} 60... Nh7 {[%clk
0:00:03.9]} 61. Qxh7 {[%clk 0:00:15.3]} 61... Bg5 {[%clk 0:00:04.2]} 62. Qg7+
{[%clk 0:00:14.5]} 62... Ke8 {[%clk 0:00:05.1]} 63. fxg5 {[%clk 0:00:15.1]}
63... Kd8 {[%clk 0:00:06]} 64. h7 {[%clk 0:00:15.6]} 64... Kc8 {[%clk
0:00:06.9]} 65. h8=Q# {[%clk 0:00:15.4]} 1-0